Cogmind - Beta 13 @@@ ROGUE MODE // 2024.03.17 @ 00:36:51 Player: youngster Result: Destroyed by E8-UYB(R) with Subdweller Shrapnel Launcher Performance ------------- Evolutions (0) 0 Regions Visited (3) 600 Robots Destroyed (44) 220 Value Destroyed (814) 814 Prototype IDs (1) 20 Alien Tech Used (0) 0 Bonus (0) 0 TOTAL SCORE: 1654 Bonus ------- None Cogmind --------- Core Integrity 0/250 Matter 279/300 Energy 128/280 System Corruption 0% Temperature Cool (0) Movement Treading (160) Location -10/Subcaves Parts ------- > --- POWER (1) -------- Heavy Ion Engine > --- PROPULSION (2) --- Light Treads Light Treads > --- UTILITY (2) ------ Large Storage Unit Improved Terrain Scanner > --- WEAPON (2) ------- EMP Blaster > --- INVENTORY (15) --- Heavy Ion Engine Heavy Ion Engine Light Treads Light Treads Compact Wheel Cobbler Unit Subdweller Beam Cannon Grenade Launcher Grenade Launcher Rocket Launcher Mace Makeshift Sword Scrap Shield Fragment (47) Scrap Shield Fragment (46) Peak State ------------ > --- POWER ------------ Heavy Ion Engine > --- PROPULSION ------- Light Treads Light Treads > --- UTILITY ---------- Large Storage Unit Improved Terrain Scanner > --- WEAPON ----------- EMP Blaster EMP Blaster > --- INVENTORY -------- Heavy Ion Engine Heavy Ion Engine Light Nuclear Core Light Treads Light Treads Compact Wheel Grenade Launcher Grenade Launcher Rocket Launcher Mace Makeshift Sword Scrap Shield Fragment Scrap Shield Fragment Scrap Shield Fragment Scrap Shield Fragment [Rating: 16] Favorites ----------- Power Heavy Ion Engine Engine Heavy Ion Engine Propulsion Light Treads Treads Light Treads Utility Large Storage Unit Device Improved Terrain Scanner Storage Large Storage Unit Processor Targeting Computer Protection Improved Light Armor Plating Weapon Assault Rifle Energy Gun Small Laser Ballistic Gun Assault Rifle Launcher EMP Blaster Impact Weapon Mace Build | -11 -10 -10 -10 ------- Run | Yrd Mat Min Sub Slots Evolved . | . . . . Power . | . . . . Propulsion . | . . . . Utility . | . . . . Weapon . | . . . . Parts Attached 40 | 8 17 5 10 Power 3 | 1 2 . . Engine 3 | 1 2 . . Core . | . . . . Reactor . | . . . . Propulsion 8 | 2 5 . 1 Treads 8 | 2 5 . 1 Leg . | . . . . Wheel . | . . . . Hover . | . . . . Flight . | . . . . Utility 7 | 2 3 1 1 Device 2 | 1 . . 1 Storage 3 | 1 2 . . Processor 1 | . 1 . . Hackware . | . . . . Protection 1 | . . 1 . Artifact . | . . . . Weapon 22 | 3 7 4 8 Energy Gun 9 | 2 3 . 4 Energy Cannon . | . . . . Ballistic Gun 1 | 1 . . . Ballistic Cannon . | . . . . Launcher 9 | . 3 2 4 Special Weapon . | . . . . Impact Weapon 3 | . 1 2 . Slashing Weapon . | . . . . Piercing Weapon . | . . . . Special Melee Weapon . | . . . . Unidentified Prototypes 1 | . 1 . . Parts Lost 6 | . 2 . 4 Power . | . . . . Propulsion . | . . . . Utility 2 | . 1 . 1 Weapon 4 | . 1 . 3 Highest Loss Streak 3 | . 1 . 3 To Critical Strikes . | . . . . Average Slot Usage (%) 99 | . 99 100 98 Engine 14 | . 14 14 14 Treads 28 | . 28 28 28 Device 3 | . 1 . 10 Storage 14 | . 14 14 14 Processor 9 | . 11 14 . Energy Gun 7 | . 13 . 1 Ballistic Gun 6 | . 13 . . Launcher 9 | . . 16 22 Impact Weapon 3 | . . 11 2 Naked Turns . | . . . . Heaviest Build 37 | 14 34 37 37 Greatest Support 40 | 40 40 40 40 Greatest Overweight (x) 1 | 1 . . . Average Overweight (x) . | . . . . Largest Inventory Capacity 15 | 8 15 15 15 Average Capacity 14 | 7 14 15 15 Most Carried 15 | 4 15 15 15 Average Carried 12 | 2 10 14 14 Final Capacity 15 | 8 15 15 15 Final Carried 15 | 4 15 14 15 Class Distribution -------------------- 100% | Mutant Dominant Class ---------------- Mutant | -10/Materials Mutant | -10/Mines Mutant | -10/Subcaves Resources | -11 -10 -10 -10 ----------- Run | Yrd Mat Min Sub Matter Collected 926 | 236 334 175 181 Remotely . | . . . . Salvage Created 1420 | 55 835 305 225 Parts 84 | 6 43 14 21 Haulers Intercepted 2 | . 2 . . Recyclers Shooed 2 | . 2 . . Parts Field Recycled . | . . . . Retrieved Matter . | . . . . Parts Self-Destructed 10 | . . . 10 Prevented 3 | . . . 3 Kills | -11 -10 -10 -10 ------- Run | Yrd Mat Min Sub Combat Hostiles Destroyed 29 | . 11 9 9 Guns 11 | . 11 . . AOE 18 | . . 9 9 Classes Destroyed 10 | 1 5 2 2 Worker 3 | . . 3 . Tunneler 5 | 2 3 . . Hauler 2 | . 2 . . Recycler 5 | . 3 2 . Watcher 2 | . 2 . . Swarmer 12 | . 3 3 6 Grunt 12 | . 8 4 . Artisan 1 | . . . 1 Subdweller 3 | . . . 3 Assembled 2 | . . 2 . Best Kill Streak 7 | 1 6 7 5 Combat Bots Only 6 | . 6 3 5 Max Kills in Single Turn 3 | 1 1 3 3 Gunslinging . | . . . . Exploded 3 | . . 3 3 Melee . | . . . . Uniques/NPCs Destroyed . | . . . . Combat | -11 -10 -10 -10 -------- Run | Yrd Mat Min Sub Hostile Shots Fired 98 | . 56 6 36 Missed 13 | . 8 3 2 Damage Taken 1476 | . 639 58 779 Core 253 | . 89 10 154 Absorbed by Shields . | . . . . Regen/Repaired (Parts) 226 | . 226 . . Core Remaining (%) 100 | 100 . . . Volleys Fired 86 | 5 56 8 17 Largest 2 | 2 2 2 2 Hottest 80 | 60 60 60 80 Shots Fired 158 | 10 111 12 25 Gun 124 | 10 110 . 4 Cannon . | . . . . Launcher 34 | . 1 12 21 Special . | . . . . Kinetic 60 | 5 55 . . Thermal 38 | 5 32 . 1 Explosive 17 | . 1 12 4 Electromagnetic 43 | . 23 . 20 Robot Hit Streak 14 | 4 12 6 14 Robot Miss Streak 4 | 1 4 . . Penetration Max . | . . . . Secondary Targets 1 | . 1 . . Max Gunslinging Chain 1 | . 1 . . Shots Hit Robots 97 | 6 76 7 8 Core Hits 66 | 3 30 16 17 Critical Kills . | . . . . Critical Parts Destroyed . | . . . . Critical Strikes . | . . . . Melee Attacks 5 | . 2 3 . Impact 5 | . 2 3 . Slashing . | . . . . Piercing . | . . . . Sneak Attacks 2 | . . 2 . Combat Hostiles . | . . . . Follow-up Attacks . | . . . . Damage Inflicted 2851 | 66 1088 819 878 Guns 1032 | 66 932 . 34 Cannons . | . . . . Explosions 1597 | . 98 655 844 Melee 162 | . . 162 . Ramming 60 | . 58 2 . Kinetic 461 | 12 449 . . Thermal 399 | 54 335 . 10 Explosive 1071 | . . 655 416 Electromagnetic 698 | . 246 . 452 Impact 162 | . . 162 . Slashing . | . . . . Piercing . | . . . . Highest Corruption . | . . . . Average Corruption . | . . . . Corruption Purged . | . . . . Corruption Blocked . | . . . . Overload Shots . | . . . . Overflow Damage 132 | . . 116 16 Projectiles . | . . . . Explosions 30 | . . 14 16 Melee 102 | . . 102 . Knockbacks . | . . . . Impact . | . . . . Kinetic . | . . . . Secondary . | . . . . Self-Inflicted Damage 178 | . 25 22 131 Shots 11 | . 2 1 8 Rammed 17 | . 16 1 . Targets Rammed 20 | . 19 1 . Kicked . | . . . . Crushed 3 | . 3 . . Highest Temperature 105 | . 105 15 4 Average Temperature 27 | . 30 6 4 Received Heat Transfer 483 | . 321 21 141 Siege Activations . | . . . . Robots Corrupted . | . . . . Combat Hostiles . | . . . . Parts Fried 3 | . 2 1 . Impact Corruptions 3 | . . 3 . Robots Melted . | . . . . Combat Hostiles . | . . . . Parts Melted 3 | . 1 . 2 Heat Transferred 825 | 125 675 . 25 Parts Sabotaged . | . . . . Parts Stolen . | . . . . Parts Stripped . | . . . . Power Chain Reactions 3 | . 2 . 1 Alert | -11 -10 -10 -10 ------- Run | Yrd Mat Min Sub Peak Influence 295 | 10 295 275 . Initial 22 | . 6 22 . Average 133 | 3 134 148 . Maximum Alert Level 1 | . 1 1 . Low Security (%) 72 | 100 73 66 . Level 1 27 | . 26 33 . Level 2 . | . . . . Level 3 . | . . . . Level 4 . | . . . . Level 5 . | . . . . High Security . | . . . . Max Security . | . . . . Squads Dispatched 3 | . 3 . . Investigation 2 | . 2 . . Extermination . | . . . . Reinforcement 1 | . 1 . . Assault . | . . . . Garrison . | . . . . Intercept . | . . . . Searches Triggered . | . . . . Construction Impeded . | . . . . Haulers Reinforced . | . . . . Active Scanning Responses . | . . . . Cargo Convoy Interrupts . | . . . . Stealth | -11 -10 -10 -10 --------- Run | Yrd Mat Min Sub Distress Signals 3 | . 3 . . Communications Jammed . | . . . . Distress Signals . | . . . . Times Spotted 37 | . 21 6 10 Peak Tracking Total 6 | . 6 3 4 Tactical Retreats 1 | . 1 . . Traps | -11 -10 -10 -10 ------- Run | Yrd Mat Min Sub Traps Triggered 1 | . 1 . . Indirectly . | . . . . Trap Hack Attempts . | . . . . Triggered . | . . . . Disarmed . | . . . . Reprogrammed . | . . . . Reused . | . . . . Traps Extracted . | . . . . Installed . | . . . . Triggered . | . . . . Machines | -11 -10 -10 -10 ---------- Run | Yrd Mat Min Sub Machines Disabled 1 | . . 1 . Max in Single Turn 1 | . . 1 . Machines Repaired . | . . . . Machines Dismantled . | . . . . Machines Sabotaged . | . . . . Overloaded Fab Kills . | . . . . Hacking | -11 -10 -10 -10 --------- Run | Yrd Mat Min Sub Machines Accessed 8 | . 8 . . Terminals 5 | . 5 . . Fabricators . | . . . . Repair Stations 1 | . 1 . . Recycling Units 2 | . 2 . . Scanalyzers . | . . . . Garrison Access . | . . . . Total Hacks 21 | . 21 . . Successful 16 | . 16 . . Failed 5 | . 5 . . Catastrophic . | . . . . Database Lockouts . | . . . . Manual 14 | . 14 . . Terminals 15 | . 15 . . Fabricators . | . . . . Repair Stations 4 | . 4 . . Recycling Units 2 | . 2 . . Scanalyzers . | . . . . Garrison Access . | . . . . Terminal Hacks 7 | . 7 . . Part Schematic 1 | . 1 . . Robot Schematic 1 | . 1 . . Robot Analysis 1 | . 1 . . Locate Traps 2 | . 2 . . Hauler Manifests 1 | . 1 . . Zone Layout 1 | . 1 . . Fabricator Hacks . | . . . . Repair Station Hacks 4 | . 4 . . Scan Component 2 | . 2 . . Repair 2 | . 2 . . Recycling Unit Hacks . | . . . . Scanalyzer . | . . . . Garrison Access Hacks . | . . . . Unauthorized Hacks 5 | . 5 . . Terminals 3 | . 3 . . Botnet 2 | . 2 . . Operators 1 | . 1 . . Fabricators . | . . . . Repair Stations . | . . . . Recycling Units 2 | . 2 . . Tunnel 2 | . 2 . . Scanalyzers . | . . . . Garrison Access . | . . . . Data Cores Recovered . | . . . . Used . | . . . . Hacking Detections 5 | . 5 . . Full Trace Events 1 | . 1 . . Feedback Events . | . . . . Feedback Blocked . | . . . . Robot Schematics Acquired 1 | . 1 . . Robots Built . | . . . . Authchips . | . . . . Time . | . . . . Total Robot Build Rating . | . . . . Part Schematics Acquired 1 | . 1 . . Parts Built . | . . . . Authchips . | . . . . Time . | . . . . Total Part Build Rating . | . . . . Parts Repaired 2 | . 2 . . Time 62 | . 62 . . Parts Recycled . | . . . . Recycled Matter . | . . . . Retrieved Matter . | . . . . Retrieved Components . | . . . . Parts Scanalyzed . | . . . . Part Schematics Acquired . | . . . . Parts Damaged . | . . . . Bothacking | -11 -10 -10 -10 ------------ Run | Yrd Mat Min Sub Used RIF Installer . | . . . . Robots Hacked . | . . . . Non-combat . | . . . . Combat . | . . . . Robot Hacks Applied . | . . . . Relay Couplers Released . | . . . . Fabnet Peak Effective % . | . . . . Robots Rewired . | . . . . Allies Hacked . | . . . . Hacks Repelled . | . . . . Allies | -11 -10 -10 -10 -------- Run | Yrd Mat Min Sub Total Allies . | . . . . Largest Group . | . . . . Highest-Rated Group . | . . . . Highest-Rated Ally . | . . . . Total Orders . | . . . . Ally Attacks . | . . . . Total Damage . | . . . . Kills . | . . . . Allies Corrupted . | . . . . Allies Melted . | . . . . Intel | -11 -10 -10 -10 ------- Run | Yrd Mat Min Sub Robot Analysis Total 1 | . 1 . . Derelict Logs Recovered 1 | . . 1 . Drone Launches . | . . . . Drone Recoveries . | . . . . Exploration | -11 -10 -10 -10 ------------- Run | Yrd Mat Min Sub Turns Passed 3153 | 105 1515 817 716 Spaces Moved 1658 | 46 733 475 404 Core 3 | 3 . . . Treads 1655 | 43 733 475 404 Legs . | . . . . Wheels . | . . . . Hover . | . . . . Flight . | . . . . Fastest Speed 50 | 50 160 160 160 Average Speed 159 | 153 160 160 160 Slowest Speed 160 | 160 160 160 160 Overloaded Moves . | . . . . Propulsion Burnouts . | . . . . Robots Hopped . | . . . . Cave-ins Triggered . | . . . . Exploration Rate (%) 57 | 4 94 99 31 Regions Visited 3 Branch Regions 2 Pre-discovered Areas 4 | . 2 1 1 Known Exits Taken . | . . . . Unknown Exits Taken 3 | 1 1 1 . Scrap Searched 1 | . . 1 . Spaces Dug 52 | . 9 18 25 Terrain Destroyed 115 | . 14 68 33 Melee 2 | . 1 1 . Projectile . | . . . . AOE 113 | . 13 67 33 Terrain Rammed . | . . . . Walls Destroyed . | . . . . Machines Disabled . | . . . . Actions | -11 -10 -10 -10 --------- Run | Yrd Mat Min Sub Total 1977 | 66 946 513 452 Wait 124 | 4 95 19 6 Move 1655 | 45 732 474 404 Hop . | . . . . Pick Up 29 | 4 15 1 9 Fast Attach 10 | 7 3 . . Attach 4 | . 1 . 3 Detach 1 | . 1 . . Swap 26 | 1 13 5 7 Drop 17 | . 9 2 6 Fire 86 | 5 56 8 17 Melee 5 | . 2 3 . Ram . | . . . . Kick . | . . . . Crush 20 | . 19 1 . Escape Stasis . | . . . . Rewire . | . . . . Trap . | . . . . Miscellaneous . | . . . . Route ------- -11/Scrapyard -10/Materials (discovered 5 exits: [*Mat x3] / [*Min x2]) -10/Mines (discovered 4 exits: [*Mat x2] / [*Exi] / [*Sub]) -10/Subcaves History --------- Turn | Location | Event 34 | -11/Scrapyard | Discovered new exit (range 15) 106 | -11/Scrapyard | Entered Materials 187 | -10/Materials | Discovered new exit (range 16) 320 | -10/Materials | Build established: Mutant 352 | -10/Materials | Discovered new exit (range 16) 703 | -10/Materials | Discovered new exit (range 3) 1183 | -10/Materials | Discovered new exit (range 12) 1494 | -10/Materials | Repaired Broken Lgt. Treads 1521 | -10/Materials | Repaired Lgt. Treads 1533 | -10/Materials | Discovered new exit (range 9) 1621 | -10/Materials | Entered Mines 1679 | -10/Mines | Deemed a non-threat by the Exiles lab entrance 1679 | -10/Mines | Discovered new exit (range 5) 1810 | -10/Mines | Assembled infested the area 1815 | -10/Mines | Discovered new exit (range 10) 1865 | -10/Mines | Discovered new exit (range 10) 2017 | -10/Mines | Discovered new exit (range 15) 2106 | -10/Mines | Received a Rocket Launcher from a helpful Derelict 2438 | -10/Mines | Entered Subcaves 2591 | -10/Subcaves | Ambushed by Subdweller buried in earth 2594 | -10/Subcaves | Core integrity fell below 50% 2610 | -10/Subcaves | Core integrity fell below 20% 2634 | -10/Subcaves | Lost 3 parts (1u2w) 2665 | -10/Subcaves | Disturbed a concealed Subdweller 3087 | -10/Subcaves | Learned location of Zion (-6) 3087 | -10/Subcaves | Met a Zionite searching for "candidates" 3154 | -10/Subcaves | Destroyed by E8-UYB(R) with Subdweller Shrapnel Launcher Last Messages --------------- 02848_ Acquired 8 matter. 02863_ Dropped Sml. Laser. 02863_ Acquired Mak. Sword. 02866_ Dropped Scrap Shield Fragment. 02867_ Acquired Cobbler Unit. 02868_ Acquired 3 matter. 02946_ 92-JEC(R) destroyed. 02946_ Chain reaction triggered in Corrupted Sub. Power Source. 02959_ Dropped Lgt. Nuclear Core. 02959_ Acquired Corrupted Sub. Beam Cannon. 02960_ Acquired 24 matter. 03074_ YR-FHE(z): "She is not going to be happy we haven't found any suitable candidates yet." 03087_ YR-FHE(z): "Hey you! It's really dangerous down here, I feel that you could die at any moment. For your health and safety might I suggest a trip to Zion?" World map updated: -6/Zion. 03154_ EMP Blaster destroyed. Map ----- +----------------------------------------------------+ | ?????????????????????????????????????????????????? | | ?????????????????????????????????????????????????? | | ?????????????????????????????????????????????????? | | ?????????????????????????????????????????????????? | | ?????????????????????????????????????????????????? | | ?????????????????????????????????????????????????? | | ?????????????????????????????????????????????????? | | ?????????????????????????????????????????????????? | | ?????????????????????????????????????????????????? | | ?????????????????????????????????????????????????? | | ?????????????????????????????????????????????????? | | ????????????????????????????????#????????????????? | | ??????????????????????#?????????#????????????????? | | ??????????????????????####????#??????????????????? | | ?????????????????????## ##??????#??????????????? | | ?????????????????????# #????#####????????????? | | ???????????????????#?? ####?# ?????????#?? | | ??????????????????## ?? ### ??????????#?? | | ??????????????????# ???# ????###?? ##? | | ??????????????????? ???# ##???# ? # | | ????????????????????# #### # #??? ??? | | ?????????????????#??# ;; # ##?? #???# | | ?????????????????#### # #?## ##??? | | ?????????????##### ### ### #??? | | ?????????? R ##?## | | ?????????? R @ ### | | ?????????? #;;; ## ## | | ??????????????? ?????##;;; ;; #### ## ## ### | | ????????????????????##R< ;;## #??## ### ## | | ????????????????????# <######??# ##?# | | ????????????????????#